fUST/lending_fUST_20250318
["ID","MTS","AMOUNT","RATE_DAILY","PERIOD"]
[356298468,1742227202594,-500.0,8.118e-05,2]
[356298469,1742227202616,-175.17716589,8.118e-05,2]
[356298470,1742227202638,-500.0,8.118e-05,2]
[356298471,1742227202660,-587.23185873,8.118e-05,2]
[356298472,1742227202683,-172.62401612,8.118e-05,2]
[356298473,1742227202708,-37726.96695926,8.119e-05,2]
[356298476,1742227262691,1000.0,8e-05,2]
[356298477,1742227275571,1000.0,8e-05,2]
[356298478,1742227278249,1000.0,8e-05,2]
[356298479,1742227288526,455.7254616,7.207e-05,2]
[356298480,1742227298002,1000.0,8e-05,2]
[356298542,1742227832930,-300.0,8.016e-05,2]
[356298543,1742227832941,-2083.33,8.017e-05,2]
[356298544,1742227832952,-2083.33,8.017e-05,2]
[356298545,1742227832962,-2083.33,8.017e-05,2]
[356298546,1742227832974,-2083.33,8.017e-05,2]
[356298547,1742227832984,-2083.33,8.099e-05,2]
[356298548,1742227832994,-2083.33,8.099e-05,2]
[356298549,1742227833004,-500.0,8.118e-05,2]
[356298550,1742227833014,-500.0,8.118e-05,2]
[356298551,1742227833024,-500.0,8.118e-05,2]
[356298552,1742227833034,-500.0,8.118e-05,2]
[356298553,1742227833044,-398.85870835,8.118e-05,2]
[356298554,1742227833054,-500.0,8.118e-05,2]
[356298555,1742227833064,-294.73799255,8.118e-05,2]
[356298556,1742227833077,-46556.58672338,8.119e-05,2]
[356298557,1742227833087,-2083.33,8.179e-05,2]
[356298559,1742227833099,-194.41380069,8.179e-05,2]
[356298561,1742227833108,-150.0,8.191e-05,2]
[356298562,1742227833118,-2083.33,8.192e-05,2]
[356298565,1742227833128,-500.0,8.193e-05,2]
[356298566,1742227833138,-500.0,8.193e-05,2]
[356298568,1742227833149,-500.0,8.193e-05,2]
[356298570,1742227833160,-500.0,8.193e-05,2]
[356298572,1742227833170,-500.0,8.193e-05,2]
[356298575,1742227833187,-500.0,8.193e-05,2]
[356298577,1742227833198,-500.0,8.193e-05,2]
[356298579,1742227833209,-500.0,8.193e-05,2]
[356298581,1742227833221,-500.0,8.193e-05,2]
[356298583,1742227833232,-500.0,8.193e-05,2]
[356298585,1742227833244,-500.0,8.193e-05,2]
[356298586,1742227833256,-500.0,8.193e-05,2]
[356298587,1742227833280,-500.0,8.193e-05,2]
[356298588,1742227833290,-500.0,8.193e-05,2]
[356298589,1742227833301,-500.0,8.193e-05,2]
[356298590,1742227833313,-545.92681665,8.193e-05,2]
[356298591,1742227833323,-500.0,8.193e-05,2]
[356298592,1742227833333,-500.0,8.193e-05,2]
[356298593,1742227833345,-500.0,8.193e-05,2]
[356298594,1742227833356,-500.0,8.193e-05,2]
[356298595,1742227833367,-588.29675817,8.193e-05,2]
[356298596,1742227833377,-500.0,8.193e-05,2]
[356298597,1742227833387,-500.0,8.193e-05,2]
[356298598,1742227833398,-500.0,8.193e-05,2]
[356298599,1742227833409,-500.0,8.193e-05,2]
[356298600,1742227833420,-528.7791108,8.193e-05,2]
[356298601,1742227833431,-500.0,8.193e-05,2]
[356298602,1742227833442,-194.41380069,8.199e-05,2]
[356298603,1742227833452,-420.83681128,8.2e-05,2]
[356298604,1742227833464,-1023.024,8.201e-05,2]
[356298605,1742227833474,-1913.0,8.201e-05,2]
[356298606,1742227833485,-533.179,8.201e-05,2]
[356298607,1742227833496,-163.9850163,8.21e-05,2]
[356298608,1742227833507,-552.52731417,8.217e-05,2]
[356298609,1742227833518,-2083.33,8.217e-05,2]
[356298610,1742227833529,-2083.33,8.217e-05,2]
[356298611,1742227833540,-2083.33,8.217e-05,2]
[356298612,1742227833550,-2083.33,8.218e-05,2]
[356298613,1742227833561,-2083.33,8.218e-05,2]
[356298614,1742227833571,-2083.33,8.218e-05,2]
[356298615,1742227833582,-2083.33,8.218e-05,2]
[356298616,1742227833592,-2083.33,8.218e-05,2]
[356298617,1742227833602,-1544.73907378,8.218e-05,2]
[356298643,1742227838639,-26255.74113487,8.119e-05,2]
[356298644,1742227838652,-20977.97573421,8.119e-05,2]
[356298645,1742227838671,-268.735003,8.119e-05,2]
[356298646,1742227838683,-655.50391997,8.119e-05,2]
[356298650,1742227840986,-742.8280121,8.119e-05,2]
[356298653,1742227841054,-108156.86134801,8.119e-05,2]
[356298725,1742227843851,-7262.0438264,8.119e-05,2]
[356298726,1742227843863,-10244.39562896,8.119e-05,2]
[356298727,1742227843979,-19891.50272128,8.119e-05,2]
[356298728,1742227843991,-790.69929466,8.119e-05,2]
[356298729,1742227844003,-328.2876001,8.119e-05,2]
[356298732,1742227890779,200.0,0.0001422,120]
[356298733,1742228070988,200.0,0.0001495,120]
[356298734,1742228089045,13431.1855776,7.397e-05,2]
[356298737,1742228597201,212.9790134,7.177e-05,2]
[356298742,1742228724356,-539.35919192,0.0001535,30]
[356298743,1742228724389,-200.0,0.00016212,120]
[356298744,1742228724430,-5879.9832186,0.00018,120]
[356298745,1742228724457,-500.0,0.00018,30]
[356298746,1742228724485,-500.0,0.00018,30]
[356298747,1742228724512,-500.0,0.00018,30]
[356298748,1742228724540,-500.0,0.00018,30]
[356298749,1742228724569,-500.0,0.00018,30]
[356298750,1742228724597,-500.0,0.00018,30]
[356298751,1742228724623,-500.0,0.00018,30]
[356298752,1742228724652,-500.0,0.00018,30]
[356298753,1742228724679,-500.0,0.00018,30]
[356298754,1742228724704,-500.0,0.00018,30]
[356298755,1742228724732,-500.0,0.00018,30]
[356298756,1742228724757,-500.0,0.00018,30]
[356298757,1742228724784,-500.0,0.00018,30]
[356298758,1742228724811,-500.0,0.00018,30]
[356298759,1742228724837,-500.0,0.00018,30]
[356298760,1742228724862,-500.0,0.00018,30]
[356298761,1742228724889,-500.0,0.00018,30]
[356298762,1742228724915,-500.0,0.00018,30]
[356298763,1742228724940,-300.25433486,0.00018,30]
[356298764,1742228724971,-479.9832186,0.00019,120]
[356298765,1742228724999,-200.0,0.00019155,120]
[356298766,1742228725030,-200.0,0.00019802,120]
[356298767,1742228725058,-479.9832186,0.0002,120]
[356298768,1742228725085,-1008.24129751,0.0002,120]
[356298769,1742228725113,-1000.0,0.0002,120]
[356298770,1742228725141,-2000.0,0.0002,120]
[356298771,1742228725170,-2000.0,0.0002,120]
[356298772,1742228725200,-2000.0,0.0002,120]
[356298773,1742228725230,-2000.0,0.0002,120]
[356298774,1742228725260,-2000.0,0.0002,120]
[356298775,1742228725289,-2000.0,0.0002,120]
[356298776,1742228725318,-2000.0,0.0002,120]
[356298777,1742228725346,-2000.0,0.0002,120]
[356298778,1742228725374,-2000.0,0.0002,120]
[356298779,1742228725404,-2000.0,0.0002,120]
[356298780,1742228725432,-21499.20194248,0.0002,120]
[356298781,1742228725459,-3670.45001729,0.0002,120]
[356298782,1742228725489,-150.0,0.0002,30]
[356298783,1742228725516,-2000.0,0.00020301,120]
[356298784,1742228725549,-2000.0,0.00020329,120]
[356298785,1742228725581,-2000.0,0.00020356,120]
[356298786,1742228725610,-2000.0,0.00020384,120]
[356298787,1742228725639,-2000.0,0.00020411,120]
[356298788,1742228725669,-2000.0,0.00020438,120]
[356298789,1742228725697,-273.26044835,0.0002045,30]
[356298790,1742228725910,-2000.0,0.00020466,120]
[356298791,1742228725939,-2000.0,0.00020493,120]
[356298792,1742228725967,-2000.0,0.00020521,120]
[356298793,1742228725996,-2000.0,0.00020548,120]
[356298794,1742228726026,-200.0,0.00020623,120]
[356298795,1742228726052,-479.9832186,0.00021,120]
[356298796,1742228726080,-160.0,0.00021,30]
[356298797,1742228726106,-833.89138366,0.00021,30]
[356298798,1742228726138,-2000.0,0.00021918,120]
[356298799,1742228726165,-2000.0,0.00021918,120]
[356298800,1742228726192,-2000.0,0.00021918,120]
[356298801,1742228726219,-2000.0,0.00021918,120]
[356298802,1742228726247,-2000.0,0.00021918,120]
[356298803,1742228726273,-2000.0,0.00021918,120]
[356298804,1742228726299,-2000.0,0.00021918,120]
[356298805,1742228726326,-2000.0,0.00021918,120]
[356298806,1742228726354,-2000.0,0.00021918,120]
[356298807,1742228726382,-2000.0,0.00021918,120]
[356298808,1742228726410,-209.53,0.0002198,120]
[356298809,1742228726436,-150.5,0.0002199,120]
[356298810,1742228726464,-479.9832186,0.00022,120]
[356298811,1742228726491,-2509.0,0.000225,30]
[356298812,1742228726519,-200.0,0.00022676,120]
[356298813,1742228726549,-200.0,0.00022838,120]
[356298814,1742228726576,-3982.80256464,0.00023,30]
[356298815,1742228726603,-479.9832186,0.00023,120]
[356298816,1742228726632,-200.0,0.0002385,120]
[356298817,1742228726657,-253.13696256,0.00024,30]
[356298818,1742228726684,-2000.0,0.00024,30]
[356298819,1742228726710,-479.9832186,0.00024,120]
[356298820,1742228726738,-23900.68647176,0.000246,120]
[356298821,1742228726765,-200.0,0.00024601,120]
[356298822,1742228726791,-2298.0177559,0.000248,30]
[356298823,1742228726817,-6000.0,0.00025,120]
[356298824,1742228726844,-1000.0,0.00025,120]
[356298825,1742228726869,-861.78326138,0.00025,120]
[356298826,1742228726895,-2000.0,0.00025,30]
[356298827,1742228726922,-238.1865066,0.00025,30]
[356298828,1742228726948,-479.9832186,0.00025,120]
[356298829,1742228726977,-500.0,0.00025,65]
[356298830,1742228727004,-10000.0,0.00025,30]
[356298831,1742228727031,-452.12541307,0.00025,120]
[356298832,1742228727057,-2000.0,0.00025,30]
[356298833,1742228727089,-15705.19366751,0.00025,120]
[356298834,1742228727117,-417.81762827,0.00025,30]
[356298835,1742228727145,-200.0,0.00025218,120]
[356298836,1742228727174,-144419.71,0.00026,60]
[356298837,1742228727203,-102717.6628832,0.00026,60]
[356298838,1742228727230,-479.9832186,0.00026,120]
[356298839,1742228727257,-1914.9117364,0.00027,30]
[356298840,1742228727285,-200.0,0.00027,120]
[356298841,1742228727313,-479.9832186,0.00027,120]
[356298842,1742228727342,-365.79754,0.00027,120]
[356298843,1742228727371,-500.0,0.00027397,120]
[356298844,1742228727398,-500.0,0.00027397,120]
[356298845,1742228727425,-500.0,0.00027397,120]
[356298846,1742228727451,-500.0,0.00027397,120]
[356298847,1742228727478,-500.0,0.00027397,120]
[356298848,1742228727506,-500.0,0.00027397,120]
[356298849,1742228727534,-500.0,0.00027397,120]
[356298850,1742228727565,-500.0,0.00027397,120]
[356298851,1742228727594,-500.0,0.00027397,120]
[356298852,1742228727624,-500.0,0.00027397,120]
[356298853,1742228727654,-500.0,0.00027397,120]
[356298854,1742228727682,-500.0,0.00027397,120]
[356298855,1742228727712,-551.78938067,0.00027397,120]
[356298856,1742228727741,-402.0,0.00027397,120]
[356298857,1742228727770,-179.695849,0.00027397,120]
[356298858,1742228727798,-365.79754,0.000274,120]
[356298859,1742228727829,-365.79754,0.000278,120]
[356298860,1742228727858,-3423.07,0.000279,30]
[356298861,1742228727885,-365.79754,0.000282,120]
[356298862,1742228727914,-200.0,0.000285,120]
[356298863,1742228727941,-365.79754,0.000286,120]
[356298864,1742228727969,-341.34062,0.00029,120]
[356298865,1742228727997,-227.49246,0.00029,120]
[356298866,1742228728028,-365.79754,0.00029,120]
[356298867,1742228728058,-964.96044271,0.00029041,120]
[356298868,1742228728088,-365.79754,0.000294,120]
[356298869,1742228728116,-227.49246,0.000298,120]
[356298870,1742228728145,-365.79754,0.000298,120]
[356298871,1742228728173,-2920.04741298,0.0003,120]
[356298872,1742228728203,-502.89,0.0003,120]
[356298873,1742228728231,-3000.0,0.0003,120]
[356298874,1742228728260,-5500.0,0.0003,60]
[356298875,1742228728291,-200.0,0.0003,120]
[356298876,1742228728321,-684.118248,0.0003,120]
[356298877,1742228728350,-200.0,0.0003,120]
[356298878,1742228728380,-902.59864273,0.0003,30]
[356298879,1742228728409,-150000.0,0.0003,120]
[356298880,1742228728439,-5000.0,0.0003,60]
[356298881,1742228728467,-45000.0,0.0003,45]
[356298882,1742228728497,-3336.0,0.0003,30]
[356298883,1742228728527,-216.0,0.0003,120]
[356298884,1742228728560,-417.81762827,0.0003,30]
[356298885,1742228728591,-160.0,0.0003,30]
[356298886,1742228728621,-833.89138366,0.0003,30]
[356298887,1742228728649,-365.79757,0.000302,120]
[356298888,1742228728680,-200.0,0.00030388,120]
[356298889,1742228728709,-227.49248,0.000306,120]
[356298890,1742228728736,-200.0,0.0003067,30]
[356298891,1742228728765,-2876.79392689,0.00031,120]
[356298892,1742228728793,-417.81762827,0.00031,120]
[356298893,1742228729036,-200.0,0.00031905,120]
[356298894,1742228729066,-1700.0,0.00032,120]
[356298895,1742228729095,-200.0,0.00032159,120]
[356298896,1742228729124,-2864.772,0.000325,120]
[356298897,1742228729153,-2864.772,0.000325,120]
[356298898,1742228729182,-2864.772,0.000325,120]
[356298899,1742228729209,-2864.773,0.000325,120]
[356298900,1742228729236,-2864.772,0.000325,120]
[356298901,1742228729263,-200.0,0.0003268,36]
[356298902,1742228729293,-200.0,0.00032783,120]
[356298903,1742228729325,-200.0,0.00033258,120]
[356298904,1742228729354,-180.0,0.00034,120]
[356298905,1742228729384,-179.695849,0.00034247,120]
[356298906,1742228729413,-200.0,0.0003469,41]
[356298907,1742228729441,-281372.15645,0.0003488,30]
[356298908,1742228729469,-3028273.24459446,0.0003499,30]
[356299059,1742228736000,-197144.08692699,0.0003499,30]
[356299061,1742228736033,-10000.0,0.00035,35]
[356299063,1742228736060,-226.60765431,0.00035,30]
[356299065,1742228736091,-200.0,0.00035,30]
[356299067,1742228736119,-150.0,0.00035,69]
[356299069,1742228736146,-1865.4460992,0.00035,120]
[356299070,1742228736174,-653.4704342,0.00035,120]
[356299072,1742228736201,-242620.0,0.00035,120]
[356299074,1742228736228,-414.7,0.00035,30]
[356299076,1742228736256,-5000.0,0.00035,90]
[356299078,1742228736284,-2567.3,0.000358,30]
[356299079,1742228736313,-150.0,0.00036,86]
[356299081,1742228736342,-218.0,0.00036,120]
[356299083,1742228736370,-13605.45473623,0.00036,120]
[356299085,1742228736401,-200.0,0.00036285,120]
[356299086,1742228736429,-156.08770343,0.000365,120]
[356299089,1742228736471,-200.0,0.0003669,47]
[356299091,1742228736502,-200.0,0.00036832,120]
[356299092,1742228736530,-2054.24004929,0.00036898,120]
[356299094,1742228736560,-5000.0,0.000369,30]
[356299096,1742228736588,-5000.0,0.000369,30]
[356299098,1742228736621,-10000.0,0.00037,37]
[356299100,1742228736651,-152.25,0.00037,103]
[356299102,1742228736680,-150.0,0.000375,112]
[356299104,1742228736709,-5292.29,0.000375,120]
[356299106,1742228736737,-5079.49,0.000375,120]
[356299108,1742228736767,-6019.38,0.000375,120]
[356299110,1742228736797,-200.0,0.0003798,120]
[356299112,1742228736828,-292.0,0.00038,120]
[356299114,1742228736858,-900.19,0.00038,120]
[356299116,1742228736887,-151.5,0.000385,120]
[356299126,1742228737161,-200.0,0.000387,52]
[356299128,1742228737192,-200.0,0.00038943,120]
[356299130,1742228737221,-1641.57390391,0.00039,120]
[356299132,1742228737249,-808.84,0.000398,60]
[356299134,1742228737277,-710.23432118,0.0003987,120]
[356299136,1742228737307,-10000.0,0.0004,40]
[356299138,1742228737337,-695.0,0.0004,60]
[356299140,1742228737365,-223.7554836,0.0004,120]
[356299142,1742228737396,-260.0,0.0004,120]
[356299144,1742228737425,-2059.34875491,0.0004,120]
[356299146,1742228737453,-412.9851595,0.0004,120]
[356299148,1742228737481,-3027.67283521,0.0004,120]
[356299150,1742228737509,-144722.36686187,0.0004,30]
[356299152,1742228737539,-506.6173856,0.0004,120]
[356299154,1742228737572,-313.0,0.0004,60]
[356299156,1742228737605,-356.0,0.0004,60]
[356299158,1742228737634,-10000.0,0.0004,30]
[356299160,1742228737663,-5589.17534498,0.0004,120]
[356299162,1742228737692,-200.0,0.0004,120]
[356299164,1742228737721,-318.0,0.0004,60]
[356299167,1742228737749,-9571.0,0.0004,120]
[356299168,1742228737777,-319.3458686,0.0004,30]
[356299169,1742228737806,-46570.18313809,0.0004,30]
[356299170,1742228737834,-1572.86806222,0.0004,120]
[356299171,1742228737861,-2481.98,0.0004,120]
[356299172,1742228737888,-5000.0,0.0004,120]
[356299173,1742228737915,-5000.0,0.0004,120]
[356299175,1742228737944,-1222243.9077608,0.0004,120]
[356299177,1742228737971,-500.0,0.0004,120]
[356299179,1742228737999,-500.0,0.0004,120]
[356299181,1742228738027,-647.50920931,0.0004,120]
[356299182,1742228738054,-518.901,0.0004,120]
[356299184,1742228738082,-192.28421475,0.0004,120]
[356299186,1742228738109,-192.28421475,0.0004,120]
[356299189,1742228738136,-192.28421475,0.0004,120]
[356299191,1742228738165,-192.28421475,0.0004,120]
[356299192,1742228738191,-192.28421475,0.0004,120]
[356299194,1742228738219,-192.28421475,0.0004,120]
[356299196,1742228738246,-192.28421475,0.0004,120]
[356299198,1742228738274,-192.28421475,0.0004,120]
[356299200,1742228738301,-192.28421475,0.0004,120]
[356299202,1742228738328,-192.28421475,0.0004,120]
[356299204,1742228738356,-192.28421475,0.0004,120]
[356299206,1742228738383,-192.28421475,0.0004,120]
[356299208,1742228738412,-192.28421475,0.0004,120]
[356299210,1742228738445,-192.28421475,0.0004,120]
[356299212,1742228738475,-192.28421475,0.0004,120]
[356299214,1742228738504,-192.28421475,0.0004,120]
[356299216,1742228738535,-192.28421475,0.0004,120]
[356299218,1742228738565,-192.28421475,0.0004,120]
[356299220,1742228738596,-192.28421475,0.0004,120]
[356299222,1742228738625,-192.28,0.0004,120]
[356299224,1742228738656,-448.66316776,0.0004,120]
[356299226,1742228738686,-448.66316776,0.0004,120]
[356299228,1742228738715,-448.66316776,0.0004,120]
[356299230,1742228738743,-448.66316776,0.0004,120]
[356299232,1742228738772,-448.66316776,0.0004,120]
[356299234,1742228738801,-448.66316776,0.0004,120]
[356299236,1742228738830,-448.66316776,0.0004,120]
[356299238,1742228738858,-448.66316776,0.0004,120]
[356299240,1742228738890,-448.66316776,0.0004,120]
[356299242,1742228738917,-448.66316776,0.0004,120]
[356299244,1742228738944,-448.66316776,0.0004,120]
[356299246,1742228738974,-448.66316776,0.0004,120]
[356299248,1742228739002,-448.66316776,0.0004,120]
[356299250,1742228739032,-448.66316776,0.0004,120]
[356299252,1742228739060,-448.66316776,0.0004,120]
[356299254,1742228739086,-448.66316776,0.0004,120]
[356299256,1742228739116,-448.66316776,0.0004,120]
[356299258,1742228739144,-448.66316776,0.0004,120]
[356299260,1742228739170,-448.66316776,0.0004,120]
[356299261,1742228739198,-448.66,0.0004,120]
[356299263,1742228739226,-303.57767867,0.0004,120]
[356299265,1742228739255,-303.57767867,0.0004,120]
[356299267,1742228739284,-303.57767867,0.0004,120]
[356299269,1742228739311,-303.57767867,0.0004,120]
[356299270,1742228739340,-303.57767867,0.0004,120]
[356299272,1742228739369,-303.57767867,0.0004,120]
[356299274,1742228739397,-303.57767867,0.0004,120]
[356299276,1742228739426,-303.57767867,0.0004,120]
[356299278,1742228739454,-303.57767867,0.0004,120]
[356299279,1742228739484,-303.57767867,0.0004,120]
[356299281,1742228739512,-303.57767867,0.0004,120]
[356299283,1742228739540,-303.57767867,0.0004,120]
[356299285,1742228739573,-303.57767867,0.0004,120]
[356299287,1742228739604,-303.57767867,0.0004,120]
[356299289,1742228739632,-303.57767867,0.0004,120]
[356299290,1742228739660,-303.57767867,0.0004,120]
[356299292,1742228739689,-303.57767867,0.0004,120]
[356299294,1742228739717,-303.57767867,0.0004,120]
[356299296,1742228739745,-303.57767867,0.0004,120]
[356299298,1742228739771,-303.57,0.0004,120]
[356299299,1742228739798,-708.3479169,0.0004,120]
[356299301,1742228739826,-708.3479169,0.0004,120]
[356299303,1742228739853,-708.3479169,0.0004,120]
[356299305,1742228739881,-708.3479169,0.0004,120]
[356299307,1742228739907,-708.3479169,0.0004,120]
[356299309,1742228739934,-708.3479169,0.0004,120]
[356299310,1742228739962,-708.3479169,0.0004,120]
[356299312,1742228739990,-708.3479169,0.0004,120]
[356299320,1742228740166,-708.3479169,0.0004,120]
[356299322,1742228740195,-708.3479169,0.0004,120]
[356299324,1742228740224,-708.3479169,0.0004,120]
[356299326,1742228740251,-708.3479169,0.0004,120]
[356299328,1742228740279,-708.3479169,0.0004,120]
[356299330,1742228740307,-708.3479169,0.0004,120]
[356299332,1742228740332,-708.3479169,0.0004,120]
[356299334,1742228740359,-708.3479169,0.0004,120]
[356299336,1742228740385,-708.3479169,0.0004,120]
[356299337,1742228740412,-708.3479169,0.0004,120]
[356299339,1742228740440,-708.3479169,0.0004,120]
[356299341,1742228740469,-708.34,0.0004,120]
[356299343,1742228740497,-503.59824385,0.0004,120]
[356299345,1742228740527,-417.81762827,0.0004,30]
[356299347,1742228740561,-160.0,0.0004,30]
[356299349,1742228740593,-833.89138366,0.0004,30]
[356299352,1742228740625,-200.0,0.00040464,120]
[356299353,1742228740658,-2504.41256162,0.0004068,90]
[356299355,1742228740687,-200.0,0.0004071,58]
[356299357,1742228740718,-200.0,0.0004096,120]
[356299359,1742228740746,-7605.01,0.00041,120]
[356299361,1742228740774,-500.0,0.00041095,120]
[356299363,1742228740802,-515.22739037,0.00041095,120]
[356299365,1742228740833,-999.0,0.00041095,120]
[356299367,1742228740861,-50000.0,0.00041096,30]
[356299369,1742228740890,-179.695849,0.00041096,120]
[356299371,1742228740918,-10000.0,0.00041096,30]
[356299372,1742228740946,-300.05688702,0.00041096,31]
[356299373,1742228740975,-500.0,0.00041096,31]
[356299374,1742228741003,-200.13273639,0.00041096,31]
[356299375,1742228741030,-999.0,0.00041643,120]
[356299376,1742228741057,-150.0,0.00042,120]
[356299378,1742228741084,-1000.0,0.00042,60]
[356299380,1742228741111,-2424.45,0.00042,30]
[356299382,1742228741137,-9571.0,0.00042,120]
[356299384,1742228741166,-999.0,0.00042191,120]
[356299386,1742228741193,-200.0,0.0004271,63]
[356299388,1742228741221,-999.0,0.00042739,120]
[356299390,1742228741247,-2688.998,0.000428,90]
[356299392,1742228741276,-1053.72823896,0.00042982,61]
[356299394,1742228741303,-506.78,0.00043,120]
[356299396,1742228741330,-275.29967665,0.00043,120]
[356299398,1742228741358,-1053.72823896,0.00043082,65]
[356299400,1742228741384,-1053.72823896,0.00043182,39]
[356299402,1742228741414,-1053.72823896,0.00043282,36]
[356299404,1742228741443,-999.0,0.00043287,120]
[356299406,1742228741471,-938951.99759442,0.000433,120]
[356299408,1742228741499,-1053.72823896,0.00043382,69]
[356299410,1742228741530,-1053.72823896,0.00043482,47]
[356299412,1742228741562,-1053.72823896,0.00043582,47]
[356299414,1742228741595,-1053.72823896,0.00043682,81]
[356299416,1742228741626,-200.0,0.00043712,120]
[356299418,1742228741659,-1053.72823896,0.00043782,81]
[356299420,1742228741687,-1000.0,0.00043835,120]
[356299422,1742228741716,-1000.0,0.00043835,120]
[356299423,1742228741744,-1000.0,0.00043835,120]
[356299425,1742228741772,-1000.0,0.00043835,120]
[356299427,1742228741800,-525.68401931,0.00043835,120]
[356299430,1742228741832,-999.0,0.00043835,120]
[356299432,1742228741861,-1053.72823896,0.00043882,94]
[356299433,1742228741890,-1053.72823896,0.00043982,98]
[356299435,1742228741920,-200.0,0.00044,120]
[356299437,1742228741949,-9571.0,0.00044,120]
[356299439,1742228741978,-418.37707175,0.00044,30]
[356299441,1742228742009,-1053.72823896,0.00044082,91]
[356299443,1742228742038,-1053.72823896,0.00044182,90]
[356299445,1742228742068,-1053.72823896,0.00044282,92]
[356299447,1742228742097,-1053.72823896,0.00044382,96]
[356299449,1742228742126,-999.0,0.00044383,120]
[356299452,1742228742154,-1053.72823896,0.00044482,90]
[356299453,1742228742182,-1053.72823896,0.00044582,91]
[356299456,1742228742211,-1053.72823896,0.00044682,100]
[356299457,1742228742238,-200.0,0.0004472,69]
[356299459,1742228742267,-1053.72823896,0.00044782,99]
[356299461,1742228742296,-6042.39354181,0.000448,120]
[356299463,1742228742325,-1053.72823896,0.00044882,96]
[356299465,1742228742354,-999.0,0.00044931,120]
[356299468,1742228742384,-1053.72823896,0.00044982,90]
[356299470,1742228742417,-10000.0,0.00045,45]
[356299472,1742228742445,-810.87599232,0.00045,30]
[356299474,1742228742472,-151.0,0.00045,120]
[356299475,1742228742500,-65490.79564866,0.00045,120]
[356299477,1742228742529,-50518.17441954,0.00045,120]
[356299480,1742228742560,-7766.07929842,0.00045,120]
[356299481,1742228742588,-6841.0,0.00045,120]
[356299483,1742228742616,-200000.0,0.00045,120]
[356299485,1742228742645,-151.0,0.00045,120]
[356299487,1742228742673,-15601.71660462,0.00045,120]
[356299489,1742228742701,-5000.0,0.00045,120]
[356299491,1742228742730,-15888.53,0.00045,120]
[356299493,1742228742756,-467.0,0.00045,90]
[356299495,1742228742784,-1053.72823896,0.00045082,90]
[356299497,1742228742809,-200000.0,0.000451,120]
[356299499,1742228742836,-1053.72823896,0.00045182,92]
[356299501,1742228742862,-1053.72823896,0.00045282,94]
[356299503,1742228742888,-200000.0,0.000453,120]
[356299505,1742228742914,-1053.72823896,0.00045382,100]
[356299507,1742228742942,-999.0,0.00045479,120]
[356299509,1742228742971,-1053.72823896,0.00045482,98]
[356299511,1742228743000,-1053.72823896,0.00045582,98]
[356299513,1742228743027,-1053.72823896,0.00045682,100]
[356299515,1742228743054,-467.0,0.00045724,90]
[356299517,1742228743084,-1053.72823896,0.00045782,99]
[356299519,1742228743113,-9670.13162105,0.0004588,30]
[356299526,1742228743289,-1053.72823896,0.00045882,100]
[356299528,1742228743323,-1053.72823896,0.00045982,98]
[356299530,1742228743353,-467.0,0.00045998,90]
[356299531,1742228743381,-91217.10314656,0.00046,120]
[356299608,1742228745844,491.3143357,7.207e-05,2]
[356299668,1742228748019,-62250.51575344,0.00046,120]
[356299670,1742228748048,-156.01515021,0.00046,120]
[356299671,1742228748076,-1130.0,0.00046,120]
[356299673,1742228748104,-853.37909838,0.00046,120]
[356299675,1742228748130,-492.37367187,0.00046,120]